bitfinex-derivatives/quotes_BTCF0:USTF0_20260113
["timestamp","ask_amount","ask_price","bid_price","bid_amount"]
[1768313199869,0.00543283,92033.0,92023.0,0.002]
[1768313200177,0.00543283,92033.0,92024.0,0.108688]
[1768313200564,0.00543283,92033.0,92025.0,0.108688]
[1768313200874,0.00543283,92033.0,92018.0,0.108798]
[1768313200875,0.00543283,92033.0,92022.0,0.09957072]
[1768313201068,0.09355265,92043.0,92022.0,0.09957072]
[1768313201269,0.09355265,92043.0,92023.0,0.20525872]
[1768313201476,0.09792,92047.0,92024.0,0.09657072]
[1768313201768,0.09355265,92053.0,92027.0,0.09657072]
[1768313201975,0.09355265,92053.0,92024.0,0.108688]
[1768313201976,0.010875,92046.0,92029.0,0.09657072]
[1768313202273,0.19143265,92053.0,92030.0,0.09657072]
[1768313202274,0.010875,92044.0,92030.0,0.09657072]
[1768313202471,0.010875,92044.0,92031.0,0.09657072]
[1768313202667,0.010875,92044.0,92032.0,0.09657072]
[1768313202878,0.09355265,92060.0,92035.0,0.09657072]
[1768313203069,0.09355265,92060.0,92037.0,0.09657072]
[1768313203467,0.09355265,92060.0,92039.0,0.09657072]
[1768313203781,0.001,92053.0,92039.0,0.09657072]
[1768313203966,0.010874,92050.0,92041.0,0.09657072]
[1768313204366,0.09455265,92060.0,92042.0,0.108688]
[1768313204570,0.09455265,92060.0,92043.0,0.108688]
[1768313204764,0.09455265,92060.0,92036.0,0.09657072]
[1768313205071,0.010875,92043.0,92037.0,0.09788]
[1768313205378,0.010875,92046.0,92038.0,0.09788]
[1768313205876,0.010874,92049.0,92038.0,0.09788]
[1768313206369,0.010874,92052.0,92038.0,0.09788]
[1768313206773,0.010874,92049.0,92038.0,0.09788]
[1768313207271,0.010874,92052.0,92039.0,0.13111924]
[1768313207661,0.010873,92055.0,92040.0,0.09657072]
[1768313208073,0.010874,92053.0,92040.0,0.09657072]
[1768313208667,0.09355265,92070.0,92045.0,0.09657072]
[1768313208974,0.10442465,92069.0,92050.0,0.13111924]
[1768313209175,0.09355265,92069.0,92050.0,0.13111924]
[1768313209366,0.09355265,92069.0,92045.0,0.09657072]
[1768313209561,0.09355265,92069.0,92050.0,0.13111924]
[1768313209767,0.001,92055.0,92050.0,0.13111924]
[1768313209969,0.001,92055.0,92046.0,0.09657072]
[1768313210572,0.13111924,92060.0,92044.0,0.09788]
[1768313210777,0.09355265,92063.0,92044.0,0.09788]
[1768313210976,0.09355265,92067.0,92045.0,0.09657072]
[1768313211476,0.010873,92060.0,92045.0,0.09657072]
[1768313212373,0.010873,92058.0,92046.0,0.09788]
[1768313212580,0.010873,92058.0,92047.0,0.09788]
[1768313212778,0.13111924,92060.0,92040.0,0.22768996]
[1768313213079,0.010873,92056.0,92042.0,0.09657072]
[1768313213464,0.010873,92056.0,92044.0,0.09657072]
[1768313214071,0.010873,92056.0,92045.0,0.09788]
[1768313214264,0.010873,92059.0,92045.0,0.09788]
[1768313214672,0.010873,92059.0,92049.0,0.13111924]
[1768313215278,0.001,92056.0,92049.0,0.13111924]
[1768313215478,0.001,92056.0,92046.0,0.13111924]
[1768313215679,0.010873,92055.0,92046.0,0.13111924]
[1768313215877,0.010873,92055.0,92045.0,0.19445072]
[1768313216281,0.011873,92056.0,92045.0,0.32556996]
[1768313217082,0.010873,92056.0,92045.0,0.32556996]
[1768313217280,0.010873,92056.0,92049.0,0.001]
[1768313217482,0.010873,92059.0,92049.0,0.001]
[1768313217968,0.09355265,92071.0,92050.0,0.09657072]
[1768313218172,0.09355265,92071.0,92051.0,0.09657072]
[1768313218386,0.010873,92059.0,92051.0,0.09657072]
[1768313218574,0.09355265,92071.0,92051.0,0.09657072]
[1768313218976,0.010873,92061.0,92051.0,0.09657072]
[1768313219784,0.010873,92059.0,92051.0,0.09657072]
[1768313220576,0.010873,92060.0,92051.0,0.09657072]
[1768313220886,0.010873,92063.0,92051.0,0.09657072]
[1768313221076,0.010873,92063.0,92051.0,0.09757072]
[1768313221279,0.13111924,92070.0,92051.0,0.09757072]
[1768313221280,0.010872,92069.0,92051.0,0.09757072]
[1768313221583,0.010872,92065.0,92051.0,0.09757072]
[1768313221785,0.09355265,92065.0,92046.0,0.09657072]
[1768313221975,0.22467189,92070.0,92050.0,0.13111924]
[1768313222172,0.09355265,92069.0,92050.0,0.13111924]
[1768313222673,0.22191788,92070.0,92050.0,2.4e-07]
[1768313222674,0.010873,92057.0,92050.0,2.4e-07]
[1768313222875,0.010873,92057.0,92047.0,0.13111924]
[1768313223076,0.010873,92057.0,92046.0,0.09657072]
[1768313223277,0.13111924,92060.0,92032.0,0.09657072]
[1768313223278,0.09355265,92052.0,92032.0,0.09657072]
[1768313223491,0.010875,92043.0,92032.0,0.09657072]
[1768313223791,0.010875,92043.0,92033.0,0.09788]
[1768313224174,0.010875,92044.0,92032.0,0.09657072]
[1768313224380,0.13111924,92042.0,92028.0,0.09657072]
[1768313224685,0.10167264,92053.0,92020.0,0.13111924]
[1768313224686,0.010876,92032.0,92027.0,0.09788]
[1768313225579,0.010876,92037.0,92027.0,0.09788]
[1768313225780,0.010876,92037.0,92021.0,0.09865164]
[1768313226086,0.010876,92037.0,91999.0,0.13861259]
[1768313226087,0.010877,92026.0,92007.0,0.09906807]
[1768313226296,0.010877,92023.0,92014.0,0.09788]
[1768313226484,0.09220144,92030.0,92012.0,0.09788]
[1768313226485,0.010878,92019.0,92012.0,0.09788]
[1768313226885,0.010877,92022.0,92012.0,0.09788]
[1768313228091,0.010877,92022.0,92000.0,0.14199924]
[1768313228092,0.010878,92020.0,92003.0,0.12505277]
[1768313228293,0.010878,92017.0,92003.0,0.12505277]
[1768313228484,0.010878,92015.0,92003.0,0.12505277]
[1768313228684,0.010878,92015.0,92001.0,0.09906807]
[1768313228685,0.010879,92012.0,92001.0,0.19694807]
[1768313228887,0.010878,92015.0,92001.0,0.19694807]
[1768313229188,0.010878,92015.0,92001.0,0.09788]
[1768313229589,0.010878,92015.0,92000.0,0.13111924]
[1768313229790,0.09220144,92019.0,92000.0,0.13111924]
[1768313230196,0.010878,92014.0,92000.0,0.13111924]
[1768313230994,0.09220144,92019.0,91998.0,0.12599035]
[1768313231295,0.09220144,92019.0,92000.0,0.13111924]
[1768313231494,0.001,92014.0,92000.0,0.13111924]
[1768313232802,0.001,92014.0,92000.0,0.15725045]
[1768313233091,0.010874,92048.0,92000.0,0.15725045]
[1768313233092,0.010876,92035.0,92019.0,0.02613121]
[1768313233297,0.010876,92035.0,92021.0,0.02613121]
[1768313234098,0.108755,92039.0,92021.0,0.02613121]
[1768313234298,0.09788,92039.0,92022.0,0.02613121]
[1768313234601,0.010876,92036.0,92022.0,0.02613121]
[1768313234789,0.001,92035.0,92022.0,0.02613121]
[1768313234993,0.010876,92030.0,92020.0,0.13111924]
[1768313235291,0.010876,92030.0,92017.0,0.02819609]
[1768313235501,0.010876,92030.0,92014.0,0.19694807]
[1768313235799,0.010877,92024.0,92015.0,0.09788]
[1768313235994,0.010877,92027.0,92015.0,0.09788]
[1768313236194,0.14199524,92030.0,92015.0,0.09788]
[1768313236708,0.13111924,92030.0,92015.0,0.09788]
[1768313237094,0.09210466,92033.0,92015.0,0.09788]
[1768313237489,0.002,92030.0,92015.0,0.09788]
[1768313237792,0.002,92030.0,92020.0,0.13111924]
[1768313238295,0.010877,92029.0,92020.0,0.13111924]
[1768313238494,0.010877,92029.0,92015.0,0.12571941]
[1768313239400,0.010877,92027.0,92015.0,0.02783941]
[1768313239790,0.002,92033.0,92018.0,0.02858997]
[1768313239991,0.002,92033.0,92020.0,0.14883321]
[1768313240191,0.010876,92035.0,92021.0,0.00683797]
[1768313240391,0.010876,92035.0,92023.0,0.00483797]
[1768313240592,0.010876,92038.0,92025.0,0.13111924]
[1768313240802,0.010876,92038.0,92029.0,0.13111924]
[1768313241005,0.00543283,92033.0,92029.0,0.13111924]
[1768313241199,0.010876,92038.0,92025.0,0.09865351]
[1768313241502,0.010876,92036.0,92025.0,0.09865351]
[1768313241906,0.010875,92040.0,92026.0,0.13111924]
[1768313242102,0.010875,92040.0,92030.0,0.13111924]
[1768313242300,0.010875,92040.0,92025.0,0.09865351]
[1768313243311,0.010875,92040.0,92030.0,0.002]
[1768313243603,0.010875,92040.0,92030.0,0.13315073]
[1768313243999,0.010875,92040.0,92030.0,0.13115073]
[1768313244905,0.09788,92048.0,92030.0,0.13115073]
[1768313245105,0.010876,92036.0,92025.0,0.002]
[1768313245510,0.010875,92039.0,92030.0,0.003]
[1768313245901,0.010876,92037.0,92030.0,0.003]
[1768313246302,0.010876,92037.0,92025.0,0.002]
[1768313246807,0.13115073,92040.0,92008.0,0.09788]
[1768313246808,0.09032364,92027.0,92008.0,0.09788]
[1768313247002,0.010877,92021.0,92008.0,0.09788]
[1768313247202,0.010877,92022.0,92008.0,0.09788]
[1768313247504,0.010878,92020.0,92010.0,0.13115073]
[1768313248413,0.010878,92020.0,92008.0,0.09788]
[1768313248709,0.010878,92020.0,92008.0,0.10088]
[1768313249015,0.010877,92023.0,92008.0,0.10088]
[1768313249218,0.010877,92023.0,92008.0,0.09788]
[1768313249405,0.010877,92023.0,92010.0,0.001]
[1768313249904,0.010877,92023.0,92010.0,0.13215073]
[1768313250206,0.010877,92023.0,92010.0,0.13115073]
[1768313250511,0.010877,92022.0,92010.0,0.13115073]
[1768313250719,0.010877,92022.0,92011.0,0.09788]
[1768313251706,0.010877,92022.0,92010.0,0.13115073]
[1768313251707,0.010877,92022.0,92010.0,0.23003073]
[1768313252419,0.010877,92022.0,92011.0,0.001]
[1768313253215,0.09210466,92014.0,91994.0,0.09788]
[1768313253414,0.010879,92008.0,91986.0,0.010882]
[1768313253598,0.010879,92008.0,91994.0,0.09788]
[1768313254417,0.22147437,92010.0,91994.0,0.09788]
[1768313254613,0.010879,92009.0,91994.0,0.09788]
[1768313254807,0.010879,92007.0,91994.0,0.09788]
[1768313255003,0.22147437,92010.0,91994.0,0.09788]
[1768313255919,0.22147437,92010.0,91994.0,0.09988]
[1768313256716,0.22147437,92010.0,91994.0,0.09888]
[1768313257425,0.22147437,92010.0,91994.0,0.70698399]
[1768313258223,0.09032364,92010.0,91994.0,0.71786499]
[1768313258519,0.010878,92014.0,92000.0,0.13115073]
[1768313258720,0.010878,92014.0,91994.0,0.71686499]
[1768313258922,0.010878,92014.0,91996.0,0.01088]
[1768313259419,0.09913579,92016.0,91994.0,0.19167477]
[1768313259617,0.09913579,92016.0,92000.0,0.13115073]
[1768313260419,0.010877,92023.0,92006.0,0.13115073]
[1768313260618,0.23028652,92030.0,92004.0,0.09379477]
[1768313260916,0.13115073,92020.0,92004.0,0.09379477]
[1768313261117,0.001,92014.0,92003.0,0.09788]
[1768313261312,0.001,92014.0,91997.0,0.88664]
[1768313261313,0.19285198,92012.0,91983.0,0.15307374]
[1768313261513,0.13115073,92010.0,91993.0,0.0163162]
[1768313261911,0.13115073,92010.0,91995.0,0.01088]
[1768313262111,0.09913579,92018.0,92000.0,0.13115073]
[1768313262309,0.010878,92017.0,92000.0,0.13115073]
[1768313262725,0.09913579,92018.0,92000.0,0.13115073]
[1768313263527,0.09913579,92018.0,92002.0,0.01088]
[1768313264318,0.09913579,92018.0,92004.0,0.010879]
[1768313264522,0.001,92017.0,92004.0,0.010879]
[1768313265224,0.10013579,92018.0,92004.0,0.010879]
[1768313265425,0.10013579,92018.0,92001.0,0.01088]
[1768313265928,0.09913579,92018.0,92001.0,0.01088]
[1768313266225,0.09913579,92018.0,92003.0,0.01088]
[1768313266526,0.09913579,92018.0,92000.0,0.13115073]
[1768313266928,0.09913579,92018.0,92000.0,0.14203073]
[1768313267411,0.09913579,92018.0,92000.0,0.01088]
[1768313267615,0.010878,92017.0,92000.0,0.01088]
[1768313268624,0.09913579,92024.0,92002.0,0.09379477]
[1768313268825,0.09913579,92030.0,92005.0,0.09379477]
[1768313269215,0.010878,92020.0,92005.0,0.09379477]
[1768313269413,0.010878,92018.0,92001.0,0.01088]
[1768313270617,0.010878,92019.0,92001.0,0.01088]
[1768313271215,0.19285198,92023.0,92003.0,0.01088]
[1768313271216,0.010877,92021.0,92003.0,0.01088]
[1768313271516,0.010877,92021.0,92003.0,0.10876]
[1768313271917,0.010877,92022.0,92003.0,0.10876]
[1768313272125,0.010877,92022.0,92006.0,0.09379477]
[1768313272627,0.09913579,92029.0,92009.0,0.010879]
[1768313272924,0.010877,92024.0,92006.0,0.10467377]
[1768313273325,0.09913579,92029.0,92006.0,0.09379477]
[1768313273629,0.001,92021.0,92003.0,0.108759]
[1768313274219,0.19285198,92025.0,92003.0,0.108759]
[1768313274418,0.010877,92024.0,92006.0,0.001]
[1768313274618,0.19285198,92025.0,92006.0,0.001]
[1768313274619,0.09913579,92019.0,92006.0,0.001]
[1768313274822,0.010878,92017.0,92006.0,0.09888]
[1768313275131,0.09913579,92035.0,92011.0,0.09379477]
[1768313275319,0.09913579,92035.0,92020.0,0.010878]
[1768313275514,0.09913579,92035.0,92011.0,0.09379477]
[1768313275720,0.09788,92043.0,92024.0,0.010877]
[1768313275721,0.09913579,92041.0,92024.0,0.010877]
[1768313275921,0.09371619,92045.0,92028.0,0.010877]
[1768313276123,0.09371619,92045.0,92025.0,0.010877]
[1768313276316,0.09371619,92045.0,92019.0,0.09379477]
[1768313276517,0.010876,92037.0,92018.0,0.09788]
[1768313276921,0.010876,92037.0,92018.0,0.108758]
[1768313277422,0.010876,92037.0,92009.0,0.010879]
[1768313277423,0.09371619,92028.0,92009.0,0.010879]
[1768313277729,0.09371619,92028.0,92010.0,0.09788]
[1768313277922,0.010877,92027.0,92010.0,0.09788]
[1768313279434,0.09371619,92028.0,92010.0,0.09788]
[1768313279634,0.09371619,92028.0,92011.0,0.010879]
[1768313280223,0.10459319,92028.0,92010.0,0.09788]
[1768313280433,0.010877,92026.0,92010.0,0.09788]
[1768313281235,0.09471619,92028.0,92012.0,0.010878]
[1768313281438,0.09471619,92028.0,92014.0,0.010878]
[1768313282226,0.09471619,92028.0,92010.0,0.09788]
[1768313282726,0.09471619,92028.0,92012.0,0.010878]
[1768313282930,0.010877,92025.0,92010.0,0.09788]
[1768313283431,0.10459319,92028.0,92010.0,0.108759]
[1768313283935,0.10459319,92028.0,92010.0,0.010879]
[1768313284135,0.010877,92026.0,92011.0,0.09788]
[1768313285533,0.09371619,92028.0,92011.0,0.108759]
[1768313286136,0.09471619,92028.0,92011.0,0.108759]
[1768313286432,0.001,92028.0,92012.0,0.010878]
[1768313286635,0.001,92028.0,92011.0,0.09788]
[1768313286636,0.011877,92028.0,92011.0,0.09788]
[1768313286834,0.010877,92028.0,92011.0,0.108759]
[1768313287335,0.09913579,92029.0,92011.0,0.108759]
[1768313287839,0.09913579,92029.0,92013.0,0.010878]
[1768313288041,0.11001279,92029.0,92011.0,0.09888]
[1768313288236,0.11001279,92029.0,92012.0,0.010878]
[1768313288841,0.010877,92029.0,92012.0,0.010878]
[1768313289035,0.010875,92042.0,92024.0,0.00375759]
[1768313289237,0.010876,92036.0,92021.0,0.09788]
[1768313289538,0.010877,92028.0,92021.0,0.09788]
[1768313289734,0.010876,92034.0,92021.0,0.09788]
[1768313290132,0.19229063,92035.0,92021.0,0.09788]
[1768313290332,0.010876,92031.0,92021.0,0.09788]
[1768313290529,0.010876,92031.0,92013.0,0.0091916]
[1768313290834,0.010876,92031.0,92014.0,0.09788]
[1768313291526,0.010876,92031.0,92015.0,0.00231478]
[1768313292328,0.011876,92031.0,92015.0,0.00231478]
[1768313293037,0.19229063,92056.0,92023.0,0.09836322]
[1768313293241,0.010873,92059.0,92038.0,0.10004336]
[1768313293440,0.010874,92054.0,92038.0,0.19624322]
[1768313293632,0.19229063,92058.0,92038.0,0.108755]
[1768313293943,0.010873,92057.0,92039.0,0.010875]
[1768313294131,0.10726538,92057.0,92039.0,0.010875]
[1768313294333,0.10726538,92057.0,92038.0,0.108755]
[1768313295041,0.004,92056.0,92038.0,0.108755]
[1768313295239,0.004,92056.0,92040.0,0.010875]
[1768313295636,0.004,92056.0,92042.0,0.010875]
[1768313295945,0.002,92057.0,92045.0,0.010875]
[1768313296141,0.002,92057.0,92047.0,0.010874]
[1768313296538,0.09784369,92064.0,92047.0,0.010874]
[1768313296839,0.001,92056.0,92047.0,0.010874]
[1768313297048,0.001,92056.0,92044.0,0.010875]
[1768313297940,0.10207632,92066.0,92045.0,0.09549871]
[1768313298140,0.010872,92064.0,92045.0,0.10637371]
[1768313298339,0.002,92057.0,92045.0,0.10637371]
[1768313298541,0.002,92057.0,92045.0,0.09549871]
[1768313299241,0.010872,92064.0,92045.0,0.09549871]
[1768313299740,0.001,92066.0,92049.0,0.00219086]
[1768313299942,0.010872,92067.0,92049.0,0.00219086]
[1768313300149,0.010872,92067.0,92049.0,0.09768957]
[1768313300349,0.010872,92067.0,92050.0,0.09768957]
[1768313300648,0.010872,92070.0,92050.0,0.10856357]
[1768313301154,0.00543047,92073.0,92054.0,0.10856257]
[1768313301450,0.18904801,92070.0,92050.0,0.010874]
[1768313302037,0.18904801,92070.0,92048.0,0.09788]
[1768313302239,0.010872,92066.0,92048.0,0.09788]
[1768313302549,0.010872,92069.0,92050.0,0.00262682]
[1768313302750,0.001,92064.0,92048.0,0.09788]
[1768313302948,0.001,92064.0,92048.0,0.19600553]
[1768313303140,0.001,92064.0,92049.0,0.09812553]
[1768313303854,0.001,92064.0,92051.0,0.010874]
[1768313304056,0.001,92064.0,92050.0,0.00139127]
[1768313304438,0.09884369,92064.0,92041.0,0.09688998]
[1768313304638,0.09884369,92064.0,92028.0,0.06086749]
[1768313304639,0.09120432,92056.0,92042.0,0.09788]
[1768313304839,0.09784369,92057.0,92043.0,0.09788]
[1768313305047,0.010873,92058.0,92044.0,0.09788]
[1768313305245,0.010873,92058.0,92045.0,0.09788]
[1768313305652,0.10207732,92061.0,92045.0,0.09788]
[1768313306252,0.010873,92057.0,92045.0,0.09788]
[1768313307050,0.001,92058.0,92045.0,0.09788]
[1768313307956,0.010873,92060.0,92045.0,0.09788]
[1768313308146,0.010873,92060.0,92045.0,0.09888]
[1768313308649,0.010873,92063.0,92045.0,0.09788]
[1768313308861,0.010873,92061.0,92045.0,0.09988]
[1768313309044,0.18904801,92065.0,92045.0,0.002]
[1768313309249,0.09120432,92063.0,92045.0,0.09988]
[1768313309753,0.09120432,92063.0,92045.0,0.09888]
[1768313310254,0.010873,92058.0,92045.0,0.09888]
[1768313310551,0.010873,92061.0,92045.0,0.09888]
[1768313310954,0.010873,92061.0,92045.0,0.09989415]
[1768313311155,0.010873,92061.0,92045.0,0.19439286]
[1768313312052,0.011873,92061.0,92045.0,0.19439286]
[1768313312358,0.010873,92056.0,92045.0,0.09788]
[1768313312554,0.010873,92056.0,92040.0,0.09594273]
[1768313312855,0.18904801,92061.0,92041.0,0.09788]
[1768313313051,0.09120432,92060.0,92041.0,0.09788]
[1768313313257,0.010874,92053.0,92041.0,0.09788]
[1768313314154,0.010874,92049.0,92042.0,0.09788]
[1768313314357,0.010874,92053.0,92045.0,0.001]
[1768313314848,0.010874,92049.0,92042.0,0.09788]
[1768313315043,0.09784369,92056.0,92042.0,0.09788]
[1768313315044,0.010874,92052.0,92042.0,0.09788]
[1768313315450,0.010874,92051.0,92042.0,0.09788]
[1768313315958,0.010874,92051.0,92045.0,0.001]
[1768313316961,0.09784369,92056.0,92045.0,0.001]
[1768313317260,0.010874,92049.0,92042.0,0.001]
[1768313317752,0.010874,92048.0,92042.0,0.001]
[1768313317956,0.010874,92048.0,92039.0,0.09788]
[1768313318260,0.010873,92059.0,92032.0,0.09784]
[1768313318261,0.09174698,92049.0,92032.0,0.09784]
[1768313319555,0.010875,92045.0,92032.0,0.09784]
[1768313321162,0.010874,92047.0,92032.0,0.09784]
[1768313321360,0.010875,92046.0,92032.0,0.09784]
[1768313321857,0.002,92045.0,92032.0,0.09784]
[1768313322257,0.012875,92045.0,92032.0,0.09784]
[1768313323258,0.010875,92045.0,92032.0,0.09784]
[1768313323457,0.010875,92043.0,92032.0,0.09784]
[1768313323872,0.010875,92041.0,92032.0,0.09784]
[1768313324454,0.010875,92044.0,92032.0,0.09784]
[1768313324654,0.010875,92043.0,92032.0,0.09784]
[1768313324954,0.001,92041.0,92032.0,0.09784]
[1768313325152,0.010875,92040.0,92028.0,0.19532996]
[1768313325357,0.010876,92036.0,92022.0,0.19562678]
[1768313325754,0.09274698,92041.0,92022.0,0.09788]
[1768313325956,0.010876,92035.0,92022.0,0.09788]
[1768313326153,0.09675693,92041.0,92019.0,0.00105756]
[1768313326464,0.09767492,92090.0,92015.0,0.09758318]
[1768313326465,0.09174698,92031.0,92015.0,0.09788]
[1768313326860,0.010877,92027.0,92015.0,0.09788]
[1768313327365,0.13119541,92030.0,92015.0,0.09788]
[1768313327858,0.14207141,92030.0,92015.0,0.09788]
[1768313328059,0.001,92027.0,92015.0,0.09788]
[1768313328658,0.001,92027.0,92017.0,0.13119541]
[1768313328969,0.09788,92038.0,92021.0,0.10846018]
[1768313329357,0.09788,92047.0,92028.0,0.13119541]
[1768313329552,0.010875,92044.0,92030.0,0.13119541]
[1768313329762,0.010875,92042.0,92030.0,0.13119541]
[1768313330264,0.010875,92042.0,92026.0,0.09758318]
[1768313330265,0.18750391,92045.0,92021.0,0.00206815]
[1768313330461,0.010873,92056.0,92040.0,0.09865133]
[1768313330651,0.09788,92071.0,92033.0,0.010876]
[1768313330652,0.18750391,92059.0,92036.0,0.01194415]
[1768313330856,0.28538391,92059.0,92040.0,0.13119541]
[1768313332058,0.28538391,92059.0,92036.0,0.10952733]
[1768313332257,0.28538391,92059.0,92040.0,0.13119541]
[1768313332656,0.09888,92059.0,92047.0,0.09876797]
[1768313332860,0.09888,92059.0,92049.0,0.13119541]
[1768313333055,0.001,92059.0,92049.0,0.13119541]
[1768313333462,0.09788,92064.0,92049.0,0.13119541]
[1768313333864,0.108752,92064.0,92049.0,0.13119541]
[1768313334370,0.108752,92064.0,92049.0,0.002]
[1768313334557,0.14206841,92060.0,92049.0,0.002]
[1768313334757,0.18750391,92059.0,92041.0,0.09788]
[1768313335357,0.108752,92064.0,92041.0,0.09788]
[1768313335561,0.29625591,92064.0,92042.0,0.10590086]
[1768313335765,0.29725591,92064.0,92042.0,0.10590086]
[1768313335964,0.010873,92061.0,92042.0,0.10590086]
[1768313336167,0.010873,92059.0,92042.0,0.09758318]
[1768313336865,0.010873,92056.0,92042.0,0.09758318]
[1768313337171,0.010873,92059.0,92042.0,0.09758318]
[1768313337361,0.010873,92059.0,92042.0,0.09858318]
[1768313337870,0.010873,92055.0,92042.0,0.09858318]
[1768313338880,0.010873,92055.0,92041.0,0.09788]
[1768313340170,0.010873,92058.0,92041.0,0.09788]
[1768313340659,0.13119541,92060.0,92041.0,0.09788]
[1768313340660,0.010874,92054.0,92041.0,0.09788]
[1768313340867,0.13119541,92060.0,92031.0,0.09758318]
[1768313340868,0.13119541,92051.0,92031.0,0.09758318]
[1768313341165,0.010874,92050.0,92040.0,0.13119541]
[1768313341770,0.010873,92059.0,92041.0,0.00862587]
[1768313342074,0.001,92055.0,92041.0,0.00862587]
[1768313342267,0.011873,92055.0,92041.0,0.00862587]
[1768313342465,0.13119541,92060.0,92041.0,0.00862587]
[1768313342664,0.001,92050.0,92041.0,0.00862587]
[1768313342870,0.010874,92047.0,92041.0,0.00862587]
[1768313343079,0.010874,92047.0,92026.0,0.010877]
[1768313343080,0.001,92050.0,92033.0,0.09758318]
[1768313343376,0.09174698,92053.0,92040.0,0.13119541]
[1768313343571,0.010874,92048.0,92040.0,0.13119541]
[1768313343771,0.010874,92048.0,92038.0,0.13119541]
[1768313345164,0.002,92050.0,92038.0,0.13119541]
[1768313345363,0.002,92050.0,92040.0,0.13119541]
[1768313345675,0.001,92048.0,92040.0,0.13119541]
[1768313345876,0.001,92048.0,92038.0,0.13119541]
[1768313346277,0.010874,92052.0,92038.0,0.13840457]
[1768313346481,0.010874,92052.0,92032.0,0.108756]
[1768313346482,0.010874,92055.0,92041.0,0.00720916]
[1768313346781,0.010874,92055.0,92040.0,0.22679679]
[1768313346782,0.010874,92053.0,92043.0,0.10181054]
[1768313347372,0.13119541,92060.0,92043.0,0.10181054]
[1768313347984,0.010874,92051.0,92043.0,0.10181054]
[1768313348171,0.010874,92051.0,92043.0,0.09560138]
[1768313348375,0.010874,92051.0,92040.0,0.13119541]
[1768313349381,0.22288599,92060.0,92040.0,0.13119541]
[1768313349574,0.09169058,92060.0,92040.0,0.13119541]
[1768313349767,0.23375899,92060.0,92040.0,0.13119541]
[1768313349972,0.010873,92058.0,92040.0,0.13119541]
[1768313350171,0.010874,92049.0,92040.0,0.13119541]
[1768313350786,0.010874,92047.0,92040.0,0.13119541]
[1768313351076,0.010874,92047.0,92037.0,0.22679679]
[1768313351283,0.010874,92047.0,92037.0,0.32467679]
[1768313351784,0.010874,92047.0,92037.0,0.3318743]
[1768313352283,0.010874,92047.0,92037.0,0.3328743]
[1768313352783,0.010874,92049.0,92037.0,0.2349943]
[1768313352984,0.010874,92049.0,92040.0,0.13119541]
[1768313353894,0.010874,92047.0,92040.0,0.13119541]
[1768313354086,0.010874,92047.0,92037.0,0.09988]
[1768313354586,0.010874,92049.0,92037.0,0.09788]
[1768313354881,0.18342718,92056.0,92039.0,0.13119541]
[1768313354882,0.010874,92048.0,92039.0,0.13119541]
[1768313355181,0.18342718,92049.0,92026.0,0.00413749]
[1768313355383,0.010875,92038.0,92022.0,0.09788]
[1768313355582,0.13119541,92040.0,92022.0,0.09788]
[1768313355778,0.13119541,92040.0,92022.0,0.10372848]
[1768313356088,0.010875,92040.0,92023.0,0.00584848]
[1768313356272,0.010875,92040.0,92024.0,0.00584848]
[1768313356477,0.19037478,92047.0,92030.0,0.13119541]
[1768313356676,0.0917366,92047.0,92030.0,0.13119541]
[1768313356885,0.010876,92036.0,92030.0,0.13119541]
[1768313357086,0.010876,92036.0,92027.0,0.09679636]
[1768313357286,0.010875,92039.0,92027.0,0.09679636]
[1768313358188,0.010875,92039.0,92027.0,0.09094788]
[1768313358379,0.22983359,92037.0,92017.0,0.09788]
[1768313358579,0.002,92039.0,92020.0,0.13119541]
[1768313358580,0.010876,92033.0,92020.0,0.13119541]
[1768313358787,0.002,92039.0,92029.0,0.00744567]
[1768313359293,0.002,92039.0,92029.0,0.22958896]
[1768313359484,0.010875,92042.0,92031.0,0.00744567]
[1768313359987,0.010875,92042.0,92030.0,0.09094788]
[1768313360182,0.010875,92042.0,92030.0,0.22214329]
[1768313360377,0.010875,92042.0,92030.0,0.09094788]
[1768313360588,0.010875,92042.0,92030.0,0.22214329]
[1768313360886,0.010875,92042.0,92030.0,0.09094788]
[1768313361084,0.19804463,92049.0,92025.0,0.09922807]
[1768313361283,0.010875,92040.0,92026.0,0.09922807]
[1768313362086,0.010875,92040.0,92030.0,0.13119541]
[1768313362689,0.10140645,92049.0,92031.0,0.010876]
[1768313362891,0.002,92049.0,92039.0,0.13119541]
[1768313363787,0.010874,92054.0,92041.0,0.0967943]
[1768313365285,0.001,92054.0,92043.0,0.0967943]
[1768313366693,0.09863818,92043.0,92022.0,0.00726905]
[1768313366895,0.010876,92033.0,92022.0,0.09788]
[1768313367093,0.010876,92036.0,92022.0,0.09788]
[1768313367898,0.010876,92034.0,92022.0,0.10503816]
[1768313368090,0.010876,92032.0,92022.0,0.10503816]
[1768313369088,0.010876,92032.0,92020.0,0.22214329]
[1768313369089,0.010877,92028.0,92014.0,0.09094788]
[1768313369293,0.19804463,92039.0,92019.0,0.09788]
[1768313369294,0.010876,92031.0,92019.0,0.09788]
[1768313369489,0.010877,92029.0,92019.0,0.09788]
[1768313370097,0.010877,92027.0,92019.0,0.09788]
[1768313370791,0.010877,92027.0,92016.0,0.00397561]
[1768313370993,0.010877,92025.0,92016.0,0.00397561]
[1768313371193,0.09940645,92038.0,92019.0,0.003]
[1768313371194,0.010876,92036.0,92019.0,0.003]
[1768313372602,0.010877,92027.0,92019.0,0.003]
[1768313372799,0.09940645,92038.0,92019.0,0.003]
[1768313373103,0.010876,92032.0,92021.0,0.00400651]
[1768313374006,0.010876,92035.0,92021.0,0.09495439]
[1768313374505,0.09863818,92047.0,92027.0,0.00397101]
[1768313374690,0.09863818,92047.0,92030.0,0.13119541]
[1768313374892,0.010876,92035.0,92022.0,0.00397101]
[1768313375295,0.010876,92035.0,92024.0,0.00397101]
[1768313375895,0.010876,92037.0,92024.0,0.00397101]
[1768313376091,0.010876,92035.0,92024.0,0.00397101]
[1768313376505,0.13119541,92050.0,92031.0,0.0045964]
[1768313376710,0.010875,92042.0,92032.0,0.0045964]